[Event "EICC 2025"]
[Site "Eforie-Nord"]
[Date "2025.03.16"]
[Round "2.34"]
[White "Shilon Rahav, Eliran"]
[Black "Samadov, Read"]
[Result "0-1"]
[Annotator "ChessBase"]
[ECO "B50"]
[WhiteElo "2040"]
[BlackElo "2502"]
[PlyCount "54"]
[EventDate "2025.03.14"]
[EventType "swiss"]
[EventCountry "ROU"]
[SourceTitle "playchess.com"]
[Source "ChessBase"]
[SourceQuality "1"]
[TimeControl "40/5400+30:1800+30"]

1. e4 {[%emt 0:00:01]} c5 {[%emt 0:00:11]} 2. Nf3 {[%emt 0:00:05]} d6 {[%emt 0:00:06]} 3. Nc3 {[%emt 0:00:05]} a6 {[%emt 0:00:23]} 4. g3 {[%emt 0:00:14]} g6 {[%emt 0:00:38]} 5. d4 {[%emt 0:01:53]} cxd4 {[%emt 0:00:53]} 6. Qxd4 {[%emt 0:03:31]} Nf6 {[%emt 0:01:04]} 7. e5 {[%emt 0:00:34]} Nc6 {[%emt 0:01:01]} 8. Qa4 {[%emt 0:01:24]} Ng4 {[%emt 0:01:51]} 9. Bg2 {[%emt 0:07:02]} Ngxe5 {[%emt 0:02:51]} 10. Nxe5 {[%emt 0:01:19]} dxe5 {[%emt 0:00:06]} 11. Be3 {[%emt 0:00:42]} Bg7 {[%emt 0:03:08]} 12. Nd5 {[%emt 0:06:36]} Bh3 {[%emt 0:02:33]} 13. Be4 {[%emt 0:04:53]} O-O {[%emt 0:31:16]} 14. O-O-O {[%emt 0:02:52]} Nd4 {[%emt 0:07:40]} 15. c3 {[%emt 0:04:07]} Bf5 {[%emt 0:04:19]} 16. f3 {[%emt 0:02:00]} e6 {[%emt 0:03:13]} 17. Nb4 {[%emt 0:08:00]} Qc7 {[%emt 0:01:38]} 18. Nc2 {[%emt 0:08:25]} Bxe4 {[%emt 0:04:41]} 19. fxe4 {[%emt 0:00:08]} b5 {[%emt 0:00:32]} 20. Qa3 {[%emt 0:02:46]} Nxc2 {[%emt 0:00:35]} 21. Kxc2 {[%emt 0:00:02]} Qb7 {[%emt 0:01:23]} 22. Rd3 {[%emt 0:03:53]} Rfd8 {[%emt 0:03:57]} 23. Rhd1 {[%emt 0:04:44]} Rxd3 {[%emt 0:00:53]} 24. Rxd3 {[%emt 0:00:11]} Qxe4 {[%emt 0:00:29]} 25. Kd2 {[%emt 0:01:59]} Qg2+ {[%emt 0:01:28]} 26. Kc1 {[%emt 0:01:17]} Qe2 {[%emt 0:01:45]} 27. c4 {[%emt 0:05:31]} e4 {[%emt 0:25:26]} 0-1

[Event "EICC 2025"]
[Site "Eforie-Nord"]
[Date "2025.03.16"]
[Round "2.35"]
[White "Godena, Michele"]
[Black "Gumularz, Szymon"]
[Result "1/2-1/2"]
[Annotator "TA"]
[ECO "C07"]
[WhiteElo "2439"]
[BlackElo "2591"]
[PlyCount "44"]
[EventDate "2025.03.14"]
[EventType "swiss"]
[EventCountry "ROU"]
[SourceTitle "playchess.com"]
[Source "ChessBase"]
[SourceQuality "1"]
[TimeControl "40/5400+30:1800+30"]

{[%evp 17,44,-12,-12,-16,-25,-33,0,-11,6,-8,-9,-2,13,10,5,17,24,20,32,21,41,31,61,50,88,43,47,0,0]} 1. e4 {[%emt 0:00:04]} e6 {[%emt 0:00:08]} 2. d4 {[%emt 0:00:11]} d5 {[%emt 0:00:06]} 3. Nd2 {[%emt 0:00:42]} c5 {[%emt 0:00:08]} 4. Ngf3 {[%emt 0:01:06]} cxd4 {[%emt 0:00:09]} 5. Nxd4 {[%emt 0:00:11]} Nc6 {[%emt 0:00:43]} 6. Bb5 {[%emt 0:00:08]} Bd7 {[%emt 0:00:11]} 7. Nxc6 {[%emt 0:00:09]} bxc6 {[%emt 0:00:12]} 8. Bd3 {[%emt 0:00:06][%cal Bb5d3,Bd3e4,Be4f3][%mdl 32]} Qc7 {[%emt 0:00:17]} 9. O-O {[%emt 0:21:16]} Bd6 {[%emt 0:02:01]} 10. h3 {[%emt 0:00:30] C07: French Tarrasch: 3...c5, 4 Ngf3 and 4 exd5 Qxd5.} Nf6 {[%emt 0:15:01]} 11. c4 {[%emt 0:01:58]} dxe4 $146 {[%emt 0:09:41]} ({Predecessor:} 11... O-O 12. Qc2 dxe4 13. Bxe4 Rab8 14. b3 Be5 15. Bb2 Bxb2 16. Qxb2 c5 17. Rad1 a5 {½-½ Godena,M (2439)-Kotsur,P (2478) WchT Seniors 50 2025 (5.2)}) 12. Bxe4 {[%emt 0:28:46]} Rd8 {[%emt 0:01:23]} 13. Bf3 {[%emt 0:03:39]} O-O {[%emt 0:04:52]} 14. Re1 {[%emt 0:04:00]} c5 {[%emt 0:00:47]} 15. Qe2 {[%emt 0:01:50]} a5 {[%emt 0:06:39]} 16. b3 {[%emt 0:00:56]} Bc6 {[%emt 0:04:22]} 17. Bxc6 {[%emt 0:00:46]} Qxc6 {[%emt 0:00:47]} 18. Bb2 {[%emt 0:00:32]} Be7 {[%emt 0:04:45]} 19. Nf3 {[%emt 0:07:37]} a4 {[%emt 0:01:29]} 20. Ne5 {[%emt 0:00:12]} Qb7 {[%emt 0:04:14]} 21. Rab1 {[%emt 0:03:10]} axb3 {[%emt 0:00:38]} 22. axb3 {[%emt 0:00:05]} (22. Bc3 $14) 22... Ra8 {[%emt 0:13:34] Weighted Error Value: White=0.10 (very precise) /Black=0.15 (very precise)   Mistake:       	White=1     	---        Inaccurate:     	White=1     	Black=2      OK:         	White=6     	Black=5} 1/2-1/2

[Event "EICC 2025"]
[Site "Eforie-Nord"]
[Date "2025.03.16"]
[Round "2.35"]
[White "Portariuc, Gheorghe"]
[Black "Girel, Joseph"]
[Result "0-1"]
[Annotator "ChessBase"]
[ECO "B22"]
[WhiteElo "1530"]
[BlackElo "2498"]
[PlyCount "78"]
[EventDate "2025.03.14"]
[EventType "swiss"]
[EventCountry "ROU"]
[SourceTitle "playchess.com"]
[Source "ChessBase"]
[SourceQuality "1"]
[TimeControl "40/5400+30:1800+30"]

1. e4 {[%emt 0:00:10]} c5 {[%emt 0:00:49]} 2. c3 {[%emt 0:00:10]} d5 {[%emt 0:01:35]} 3. exd5 {[%emt 0:02:43]} Qxd5 {[%emt 0:00:16]} 4. d3 {[%emt 0:00:06]} Nc6 {[%emt 0:01:03]} 5. h3 {[%emt 0:00:10]} g6 {[%emt 0:02:41]} 6. Bf4 {[%emt 0:00:24]} Bg7 {[%emt 0:00:32]} 7. Nf3 {[%emt 0:00:10]} Nf6 {[%emt 0:00:55]} 8. Be2 {[%emt 0:00:24]} Bf5 {[%emt 0:00:43]} 9. Na3 {[%emt 0:03:02]} Rd8 {[%emt 0:01:01]} 10. O-O {[%emt 0:07:55]} O-O {[%emt 0:03:29]} 11. Ne1 {[%emt 0:02:02]} e5 {[%emt 0:05:14]} 12. Be3 {[%emt 0:00:33]} b6 {[%emt 0:01:53]} 13. Bf3 {[%emt 0:03:06]} Qd7 {[%emt 0:00:44]} 14. Be2 {[%emt 0:02:18]} Nd5 {[%emt 0:02:50]} 15. Qd2 {[%emt 0:00:58]} Rfe8 {[%emt 0:00:51]} 16. Rd1 {[%emt 0:01:13]} Qc8 {[%emt 0:02:12]} 17. Qc1 {[%emt 0:00:37]} Nxe3 {[%emt 0:02:00]} 18. Qxe3 {[%emt 0:01:22]} e4 {[%emt 0:00:10]} 19. Qg5 {[%emt 0:06:29]} exd3 {[%emt 0:02:14]} 20. Bxd3 {[%emt 0:05:11]} Rxe1 {[%emt 0:00:51]} 21. Rfxe1 {[%emt 0:01:42]} Rxd3 {[%emt 0:00:32]} 22. Rxd3 {[%emt 0:00:43]} Bxd3 {[%emt 0:00:03]} 23. Qe3 {[%emt 0:00:21]} Bf5 {[%emt 0:03:15]} 24. Nb5 {[%emt 0:00:32]} Be6 {[%emt 0:00:30]} 25. a3 {[%emt 0:02:14]} Qd7 {[%emt 0:01:58]} 26. a4 {[%emt 0:00:27]} Ne5 {[%emt 0:01:23]} 27. Qg3 {[%emt 0:01:41]} a6 {[%emt 0:00:46]} 28. Na3 {[%emt 0:00:54]} Qd5 {[%emt 0:01:24]} 29. Nb1 {[%emt 0:05:29]} h5 {[%emt 0:00:21]} 30. f4 {[%emt 0:02:02]} Nd3 {[%emt 0:00:48]} 31. Rd1 {[%emt 0:01:04]} c4 {[%emt 0:00:12]} 32. b3 {[%emt 0:01:21]} Qc5+ {[%emt 0:00:45]} 33. Kh2 {[%emt 0:00:09]} Nxf4 {[%emt 0:01:31]} 34. b4 {[%emt 0:01:56]} Qf5 {[%emt 0:00:33]} 35. Qf3 {[%emt 0:01:04]} Be5 {[%emt 0:00:31]} 36. Kg1 {[%emt 0:01:13]} Bd5 {[%emt 0:01:49]} 37. Qf2 {[%emt 0:01:30]} Bxg2 {[%emt 0:00:19]} 38. Qxb6 {[%emt 0:01:03]} Nxh3+ {[%emt 0:00:46]} 39. Kxg2 {[%emt 0:00:40]} Qg4+ {[%emt 0:00:27]} 0-1

[Event "EICC 2025"]
[Site "Eforie-Nord"]
[Date "2025.03.16"]
[Round "2.36"]
[White "Huschenbeth, Niclas"]
[Black "Talibov, Shiroghlan"]
[Result "1-0"]
[Annotator "TA"]
[ECO "B95"]
[WhiteElo "2589"]
[BlackElo "2428"]
[PlyCount "63"]
[EventDate "2025.03.14"]
[EventType "swiss"]
[EventCountry "ROU"]
[SourceTitle "playchess.com"]
[Source "ChessBase"]
[SourceQuality "1"]
[TimeControl "40/5400+30:1800+30"]

{[%evp 15,63,0,0,0,6,6,10,5,19,0,-1,-55,-56,-58,-28,0,24,22,43,33,84,-16,0,0,156,124,388,372,450,468,443,289,268,221,216,204,609,585,793,823,814,810,857,852,813,821,762,739,725,710]} 1. e4 {[%emt 1:31:00]} c5 {[%emt 1:31:00]} 2. Nf3 {[%emt 0:00:30]} d6 {[%emt 0:00:30]} 3. d4 {[%emt 0:00:30]} cxd4 {[%emt 0:00:30]} 4. Nxd4 {[%emt 0:00:30]} Nf6 {[%emt 0:00:30]} 5. Nc3 {[%emt 0:00:30]} a6 {[%emt 0:00:30]} 6. Bg5 {[%emt 0:00:30]} e6 {[%emt 0:00:30]} 7. Qf3 {[%emt 0:00:30]} Nbd7 {[%emt 0:00:30]} 8. O-O-O {[%emt 0:00:30]} Qc7 {[%emt 0:00:30]} 9. Kb1 {[%emt 0:00:30] B95: Sicilian Najdorf: 6 Bg5 e6, unusual White 7th moves.} Be7 {[%emt 0:00:30]} 10. g4 {[%emt 0:00:30][%cal Bg2g4,Bg4g5][%mdl 32]} b5 {[%emt 0:00:30]} 11. Bxf6 {[%emt 0:00:30] The position is equal.} Nxf6 {[%emt 0:00:30]} 12. g5 {[%emt 0:00:30]} Nd7 {[%emt 0:00:30][%cal Ob5b4]} 13. a3 {[%emt 0:00:30]} ({Better is} 13. Bg2 $11) 13... Rb8 $15 {[%emt 0:00:30][%cal Ob5b4]} (13... Bxg5 $2 14. Ndxb5 (14. Qh5 Qc5 $18) 14... axb5 15. Nxb5 $18) 14. h4 $146 {[%emt 0:00:30]} (14. Rg1 b4 15. axb4 Rxb4 16. Na2 Rb6 17. b3 Bb7 18. Qe3 Nc5 19. Bg2 O-O 20. h4 {0-1 Nguyen,T (2160)-Colovic,A (2360) Budapest FS12 IM-A 1997 (11)}) 14... O-O {[%emt 0:00:30]} 15. Qe3 {[%emt 0:00:30]} Qc5 {[%emt 0:00:30]} 16. f4 {[%emt 0:00:30]} Nb6 {[%emt 0:00:30]} 17. Rh3 {[%emt 0:00:30][%cal Of4f5]} g6 {[%emt 0:00:30] [#]} (17... e5 $14 18. Nf5 Bxf5 19. exf5 Rfd8) 18. e5 {[%emt 0:00:30] White is more active.} (18. Qf3 $1 $16) 18... dxe5 $11 {[%emt 0:00:30]} 19. fxe5 {[%emt 0:00:30]} Rd8 $2 {[%emt 0:00:30]} (19... Nc4 $11 20. Bxc4 bxc4) 20. h5 $16 {[%emt 0:00:30]} Rb7 $2 {[%emt 0:00:30][%mdl 8192] Loses the game.} (20... Bb7 $16) 21. Qf4 $18 {[%emt 0:00:30]} Nd5 {[%emt 0:00:30]} 22. Nxd5 {[%emt 0:00:30]} Qxd5 {[%emt 0:00:30]} 23. Be2 {[%emt 0:00:30]} Qg2 {[%emt 0:00:30]} 24. Rg3 {[%emt 0:00:30]} Qh2 {[%emt 0:00:30]} ({But not} 24... Rxd4 25. Qxd4 Qxe2 (25... Qxg3 $2 {perishes.} 26. Qd8+ Bf8 27. Qxc8 $18) 26. Qd8+ Bf8 (26... Bxd8 27. Rxd8+ Kg7 28. h6#) 27. hxg6 fxg6 (27... hxg6 $2 28. Rh1 $18) 28. Rgg1) 25. Bf3 {[%emt 0:00:30] Hoping for c3.} Rbd7 $2 {[%emt 0:00:30] [#]} (25... Rxd4 26. Rxd4 Rd7 27. hxg6 hxg6 28. Rxd7 Bxd7) 26. c3 $1 {[%emt 0:00:30] White is clearly winning.} ({Don't go for} 26. Rd2 $2 Rxd4 $19) 26... Bc5 {[%emt 0:00:30]} 27. Rd2 {[%emt 0:00:30]} Qxd2 {[%emt 0:00:30]} 28. Qxd2 {[%emt 0:00:30]} Bxd4 {[%emt 0:00:30]} 29. cxd4 {[%emt 0:00:30]} Rxd4 {[%emt 0:00:30]} 30. Qa5 {[%emt 0:00:30]} gxh5 {[%emt 0:00:30]} 31. Bxh5 {[%emt 0:00:30]} Bb7 {[%emt 0:00:30]} 32. Bf3 {[%emt 0:00:30] Weighted Error Value: White=0.22 (precise) /Black=0.61  Loses game:     	---       	Black=1      Mistake:       	White=2     	Black=3      Inaccurate:     	White=1     	Black=2      OK:         	White=7     	Black=6      Best:        	White=1     	Black=2      Strong:       	White=1     	---} 1-0

[Event "EICC 2025"]
[Site "Eforie-Nord"]
[Date "2025.03.16"]
[Round "2.36"]
[White "Brunello, Sabino"]
[Black "Kossobudzki, Robert"]
[Result "1-0"]
[Annotator "ChessBase"]
[ECO "D37"]
[WhiteElo "2494"]
[BlackElo "1954"]
[PlyCount "71"]
[EventDate "2025.03.14"]
[EventType "swiss"]
[EventCountry "ROU"]
[SourceTitle "playchess.com"]
[Source "ChessBase"]
[SourceQuality "1"]
[TimeControl "40/5400+30:1800+30"]

1. d4 {[%emt 0:00:04]} Nf6 {[%emt 0:00:07]} 2. c4 {[%emt 0:00:27]} e6 {[%emt 0:00:11]} 3. Nf3 {[%emt 0:00:17]} d5 {[%emt 0:00:33]} 4. Nc3 {[%emt 0:02:21]} Be7 {[%emt 0:01:04]} 5. Bf4 {[%emt 0:00:49]} O-O {[%emt 0:01:41]} 6. e3 {[%emt 0:00:22]} c5 {[%emt 0:03:00]} 7. Rc1 {[%emt 0:01:00]} cxd4 {[%emt 0:01:49]} 8. Nxd4 {[%emt 0:04:26]} Nbd7 {[%emt 0:06:47]} 9. Bg3 {[%emt 0:03:53]} Nb6 {[%emt 0:07:19]} 10. cxd5 {[%emt 0:07:48]} Nbxd5 {[%emt 0:01:12]} 11. Bd3 {[%emt 0:04:24]} Nxc3 {[%emt 0:03:25]} 12. bxc3 {[%emt 0:00:05]} Qa5 {[%emt 0:06:01]} 13. O-O {[%emt 0:03:35]} Rd8 {[%emt 0:12:07]} 14. Qc2 {[%emt 0:24:44]} Bd7 {[%emt 0:05:47]} 15. Nb3 {[%emt 0:04:17]} Qa4 {[%emt 0:15:00]} 16. Bc7 {[%emt 0:00:13]} Rdc8 {[%emt 0:01:01]} 17. Be5 {[%emt 0:00:09]} Qh4 {[%emt 0:01:53]} 18. c4 {[%emt 0:00:55]} b6 {[%emt 0:04:52]} 19. Nd4 {[%emt 0:09:50]} b5 {[%emt 0:06:42]} 20. Qe2 {[%emt 0:10:50]} b4 {[%emt 0:01:27]} 21. Rfd1 {[%emt 0:04:30]} Ba4 {[%emt 0:01:46]} 22. Rd2 {[%emt 0:00:42]} a5 {[%emt 0:03:45]} 23. f4 {[%emt 0:08:16]} Ng4 {[%emt 0:05:39]} 24. g3 {[%emt 0:03:10]} Qh3 {[%emt 0:02:39]} 25. Be4 {[%emt 0:00:01]} Ra7 {[%emt 0:02:29]} 26. Nf3 {[%emt 0:00:11]} f5 {[%emt 0:01:16]} 27. Bb1 {[%emt 0:00:57]} Bc6 {[%emt 0:02:05]} 28. Bd4 {[%emt 0:02:03]} Rd7 {[%emt 0:00:38]} 29. e4 {[%emt 0:00:17]} Rcd8 {[%emt 0:01:23]} 30. Rcd1 {[%emt 0:01:50]} Rxd4 {[%emt 0:01:11]} 31. Nxd4 {[%emt 0:02:30]} Bc5 {[%emt 0:00:02]} 32. exf5 {[%emt 0:00:12]} e5 {[%emt 0:00:57]} 33. fxe5 {[%emt 0:00:31]} Nxe5 {[%emt 0:00:30]} 34. Be4 {[%emt 0:00:22]} Nf3+ {[%emt 0:00:37]} 35. Qxf3 {[%emt 0:00:52]} Qh6 {[%emt 0:00:32]} 36. Bxc6 {[%emt 0:00:21]} 1-0

[Event "EICC 2025"]
[Site "Eforie-Nord"]
[Date "2025.03.16"]
[Round "2.37"]
[White "Deac, Bogdan-Daniel"]
[Black "Volcov, Igor"]
[Result "1-0"]
[Annotator "TA"]
[ECO "D04"]
[WhiteElo "2692"]
[BlackElo "1943"]
[PlyCount "63"]
[EventDate "2025.03.14"]
[EventType "swiss"]
[EventCountry "ROU"]
[SourceTitle "playchess.com"]
[Source "ChessBase"]
[SourceQuality "1"]
[TimeControl "40/5400+30:1800+30"]

{[%evp 9,63,-49,1,0,9,10,20,20,28,16,24,7,26,23,39,48,95,96,174,129,147,136,138,152,251,175,180,125,183,159,180,172,220,246,220,154,482,487,666,492,509,519,560,575,1501,1451,1839,1809,1378,1313,1527,1266,29991,29992,29995,29996]} 1. Nf3 {[%emt 0:01:02]} d5 {[%emt 0:00:07]} 2. e3 {[%emt 0:03:55]} Nf6 {[%emt 0:00:08]} 3. d4 {[%emt 0:00:16]} Bf5 {[%emt 0:01:41]} 4. Nh4 {[%emt 0:13:03]} Bg4 {[%emt 0:03:00]} 5. Qd3 {[%emt 0:05:19]} Nbd7 $146 {[%emt 0:02:30]} (5... c5 $15 6. Qb5+ Qd7) (5... c6 6. h3 Be6 7. Nd2 g6 8. Be2 Bg7 9. O-O O-O 10. f4 c5 11. c3 Qc7 {1-0 Jussupow,A (2611)-Laurusas,T (2413) EU-ch rapid Warsaw 2012 (5)}) 6. h3 {[%emt 0:01:13] D04: Colle System.} Be6 {[%emt 0:01:58]} 7. Nc3 {[%emt 0:10:46]} g6 {[%emt 0:05:44]} 8. g4 {[%emt 0:09:18] The position is equal.} Nb6 {[%emt 0:03:11][%cal Of6e4]} 9. Bg2 {[%emt 0:02:10]} Bg7 {[%emt 0:03:25]} 10. a4 {[%emt 0:02:11]} a5 {[%emt 0:02:15]} 11. b3 {[%emt 0:07:05]} O-O {[%emt 0:02:12][%cal Oc7c5]} 12. Ba3 {[%emt 0:00:44]} Nfd7 {[%emt 0:03:30]} (12... c6 $14 {should be considered.}) 13. f4 $16 {[%emt 0:05:04] White is more active.} f5 {[%emt 0:01:50]} (13... c6 $16) 14. gxf5 {[%emt 0:03:15]} Bxf5 {[%emt 0:00:04]} 15. Nxf5 {[%emt 0:01:21]} (15. Bxd5+ $2 Nxd5 16. Nxf5 Rxf5 $19) 15... Rxf5 {[%emt 0:00:22]} 16. O-O-O {[%emt 0:04:36]} Rc8 {[%emt 0:01:32]} (16... e6 $16 17. h4 Bf8) 17. Kb1 {[%emt 0:05:03]} c5 {[%emt 0:02:48]} 18. Nb5 {[%emt 0:04:30]} (18. h4 $18) 18... cxd4 {[%emt 0:03:46]} (18... c4 $16 19. Qd2 Rf7) 19. Nxd4 $18 {[%emt 0:03:00]} Rf6 {[%emt 0:00:51]} 20. Qb5 {[%emt 0:01:08][%csl LRa5,LRd5]} Nb8 {[%emt 0:07:19]} (20... Kh8 {keeps fighting.}) 21. h4 {[%emt 0:07:36][%cal Og2h3,Bh3h4,Bh4h5][%mdl 32]} Nc6 {[%emt 0:05:01]} 22. Bb2 {[%emt 0:06:11]} Qc7 $2 {[%emt 0:04:11] Black cannot hold the game after this.} (22... Nxd4 $16 {is tougher.} 23. Bxd4 Qc7 24. Bxd5+ (24. Qxa5 $2 {is the wrong capture.} Qxc2+ 25. Ka1 Qxg2 $19) 24... Nxd5 25. Qxd5+ Kh8) 23. Bxd5+ {[%emt 0:00:22] A strong pair of Bishops.} Kh8 {[%emt 0:02:07]} 24. Bxc6 {[%emt 0:00:28]} bxc6 {[%emt 0:00:12]} 25. Qxa5 {[%emt 0:00:40]} Rd6 {[%emt 0:01:02]} 26. h5 {[%emt 0:00:44] and hxg6 should not be overlooked} Rcd8 {[%emt 0:02:57]} 27. hxg6 {[%emt 0:00:10]} h6 {[%emt 0:00:08] [#]} 28. Rxh6+ $3 {[%emt 0:01:30][%mdl 512]} Kg8 {[%emt 0:00:04]} 29. Rh7 {[%emt 0:00:36][%cal Oh7g7] White threatens Rxg7+! and mate.} Rxg6 {[%emt 0:00:13]} 30. Qh5 {[%emt 0:00:14]} Rg2 {[%emt 0:00:59]} 31. Rh1 {[%emt 0:00:20]} Qd7 {[%emt 0:00:37] [#]} 32. Rh8+ $1 {[%emt 0:00:09] Weighted Error Value: White=0.22 (precise) /Black=1.17  Loses game:     	---       	Black=1      Mistake:       	White=1     	Black=5      Inaccurate:     	White=1     	Black=2      OK:         	White=7     	Black=4      Best:        	White=2     	---} 1-0

[Event "EICC 2025"]
[Site "Eforie-Nord"]
[Date "2025.03.16"]
[Round "2.37"]
[White "Culum, Sanjin"]
[Black "Petrov, Nikita"]
[Result "1/2-1/2"]
[Annotator "TA"]
[ECO "C70"]
[WhiteElo "2437"]
[BlackElo "2588"]
[PlyCount "38"]
[EventDate "2025.03.14"]
[EventType "swiss"]
[EventCountry "ROU"]
[SourceTitle "playchess.com"]
[Source "ChessBase"]
[SourceQuality "1"]
[TimeControl "40/5400+30:1800+30"]

{[%evp 9,25,27,30,35,41,29,39,31,34,33,29,37,33,35,31,31,31,14]} 1. e4 {[%emt 0:00:04]} e5 {[%emt 0:10:23]} 2. Nf3 {[%emt 0:00:07]} Nc6 {[%emt 0:00:06]} 3. Bb5 {[%emt 0:00:05]} a6 {[%emt 0:00:08]} 4. Ba4 {[%emt 0:00:07]} Nge7 {[%emt 0:00:12]} 5. c3 {[%emt 0:01:35]} Ng6 {[%emt 0:00:11]} 6. d4 {[%emt 0:08:44] C70: Ruy Lopez: 3...a6 4 Ba4, Norwegian and Delayed Schliemann.} exd4 {[%emt 0:00:06]} 7. cxd4 {[%emt 0:04:45]} Bb4+ {[%emt 0:00:15]} 8. Nc3 {[%emt 0:00:05]} d5 {[%emt 0:00:21]} 9. exd5 {[%emt 0:00:10]} Bxc3+ {[%emt 0:00:09]} 10. bxc3 {[%emt 0:00:03]} Qxd5 {[%emt 0:00:08] White is slightly better.} 11. O-O {[%emt 0:00:17][%cal Oc3c4] [#] Hoping for c4!.} O-O {[%emt 0:00:30]} 12. Bb3 {[%emt 0:01:33]} Qh5 {[%emt 0:00:14]} 13. Ng5 {[%emt 0:00:53] Weighted Error Value: White=0.00 (flawless) /Black=0.00 (flawless)   OK:         	White=3     	Black=5      Best:        	---       	Black=2} Qxd1 $146 14. Rxd1 h6 15. Ne4 Na5 16. c4 Nxb3 17. axb3 Bf5 18. f3 Rfe8 19. Re1 Rad8 {1-0 Karthikeyan,M (2627)-Vokhidov,S (2643) Crunchlab PlayIn Match D2 rapid 2024 (1.2)} 1/2-1/2

[Event "EICC 2025"]
[Site "Eforie-Nord"]
[Date "2025.03.16"]
[Round "2.38"]
[White "Cheparinov, Ivan"]
[Black "Kistrup, Nicolai"]
[Result "1-0"]
[Annotator "TA"]
[ECO "A07"]
[WhiteElo "2646"]
[BlackElo "2356"]
[PlyCount "77"]
[EventDate "2025.03.14"]
[EventType "swiss"]
[EventCountry "ROU"]
[SourceTitle "playchess.com"]
[Source "ChessBase"]
[SourceQuality "1"]
[TimeControl "40/5400+30:1800+30"]

{[%evp 15,77,0,19,4,12,-7,16,21,24,20,23,12,16,14,37,14,34,12,12,16,24,11,29,0,20,10,6,6,8,18,36,43,33,26,29,28,18,33,33,29,36,22,34,14,64,47,183,110,94,85,114,4,84,70,352,362,367,361,690,714,1218,1193,1158,1158]} 1. Nf3 {[%emt 0:01:46]} Nf6 {[%emt 0:02:14]} 2. b3 {[%emt 0:01:47]} d5 {[%emt 0:03:01]} 3. Bb2 {[%emt 0:00:07]} Bf5 {[%emt 0:00:57]} 4. g3 {[%emt 0:00:18]} e6 {[%emt 0:00:41]} 5. Bg2 {[%emt 0:00:07]} Be7 {[%emt 0:01:20]} 6. d3 {[%emt 0:00:16]} h6 {[%emt 0:00:19]} 7. O-O {[%emt 0:00:11]} O-O {[%emt 0:00:55]} 8. Nbd2 {[%emt 0:00:07]} a5 {[%emt 0:03:14]} 9. a3 $1 {[%emt 0:00:38] 9.a3 scores better than 9.a4. A07: Réti Opening: New York and Capablanca Systems.} Bh7 {[%emt 0:06:04]} 10. Re1 {[%emt 0:00:08]} Na6 {[%emt 0:12:26]} 11. e4 {[%emt 0:03:25] The position is equal.} Re8 {[%emt 0:02:58]} 12. Ne5 {[%emt 0:01:10]} c6 {[%emt 0:05:12]} 13. exd5 {[%emt 0:02:09]} cxd5 {[%emt 0:04:25]} 14. Ndf3 {[%emt 0:01:58]} Qb6 $146 {[%emt 0:08:46]} (14... Nc5 15. Qd2 Nfd7 16. Qf4 Nxe5 17. Nxe5 Bf6 18. Bd4 Rc8 19. Rad1 Qd6 20. b4 axb4 21. axb4 {0-1 Yudin,S (2526)-Askarov,B (2428) Almaty op 2018 (9)}) 15. Bh3 {[%emt 0:07:48]} Bc5 {[%emt 0:07:12]} 16. Re2 {[%emt 0:05:34]} Nb8 {[%emt 0:04:19]} 17. Qd2 {[%emt 0:02:25][%cal Oe5f7]} Nbd7 {[%emt 0:05:31]} 18. Qf4 {[%emt 0:09:04]} Bd6 {[%emt 0:13:47]} 19. g4 {[%emt 0:11:14]} (19. Rae1 Qc7 20. Qh4 Nxe5 21. Nxe5 Rac8 22. Qa4) 19... Qd8 {[%emt 0:08:20]} 20. g5 {[%emt 0:01:39]} hxg5 {[%emt 0:03:01]} 21. Qxg5 {[%emt 0:01:34]} Nxe5 {[%emt 0:01:45]} 22. Nxe5 {[%emt 0:00:17]} Bf8 {[%emt 0:02:09]} 23. Qf4 {[%emt 0:04:36]} Qe7 {[%emt 0:01:31]} 24. Kh1 {[%emt 0:00:34]} Nd7 {[%emt 0:01:12]} 25. Rg1 {[%emt 0:01:42]} (25. Nf3 {simplifies} Qd6 26. Qd4 e5 27. Qh4) 25... Qf6 {[%emt 0:00:56]} 26. Qg3 {[%emt 0:01:47]} Nxe5 {[%emt 0:00:28]} 27. Bxe5 {[%emt 0:12:23]} Qh6 {[%emt 0:00:31][%cal Oa5a4]} 28. a4 {[%emt 0:16:01]} Rac8 {[%emt 0:00:32]} 29. Bg4 {[%emt 0:01:47]} Qg5 {[%emt 0:00:40]} (29... Bg6 $11) 30. h4 $1 $36 {[%emt 0:00:36][%mdl 2048] White is pushing.} Qe7 {[%emt 0:00:32]} (30... Qh6 $14) 31. Bh3 {[%emt 0:00:47]} (31. f4 $18) 31... f6 $16 {[%emt 0:00:30]} 32. Bb2 {[%emt 0:00:46] White is more active.} Qf7 {[%emt 0:00:26] [#]} 33. Qf3 {[%emt 0:00:28] Repels Bf5} ({White should play} 33. f4 $1 $16) 33... Kh8 {[%emt 0:00:31]} (33... Bg6 $1 $11 {remains equal.}) 34. Bg4 {[%emt 0:00:57] Bh5 is the strong threat.} e5 $2 {[%emt 0:00:32][%mdl 8192]} 35. Bxc8 $18 {[%emt 0:00:12]} Rxc8 {[%emt 0:00:24]} 36. Bxe5 {[%emt 0:00:06]} Re8 $2 {[%emt 0:00:34] [#]} (36... Qd7 37. Bd4 Qf5) 37. Bxf6 $1 {[%emt 0:01:45] White is clearly winning.} Rxe2 {[%emt 0:00:32]} (37... Bg8 38. Rxe8) 38. Bxg7+ {[%emt 0:00:03]} Qxg7 {[%emt 0:00:26]} 39. Rxg7 {[%emt 0:00:04] Weighted Error Value: White=0.13 (very precise) /Black=0.58  Loses game:     	---       	Black=1      Mistake:       	White=2     	Black=4      Inaccurate:     	White=1     	Black=1      OK:         	White=8     	Black=9      Best:        	White=2     	Black=1      Strong:       	White=1     	---        Brilliant:      	White=1     	---} 1-0